bitfinex/quotes_SOLUSD_20251007
["timestamp","ask_amount","ask_price","bid_price","bid_amount"]
[1759849697624,14.95972726,223.0,222.84,20.8]
[1759849697836,14.95972726,223.0,222.86,10.87647521]
[1759849698044,13.95972726,223.0,222.88,10.87647521]
[1759849698216,13.95972726,223.0,222.89,61.72]
[1759849698410,13.95972726,223.0,222.93,10.87647521]
[1759849698635,13.95972726,223.0,222.99,10.87647521]
[1759849698818,13.95972726,223.0,222.99,72.59647521]
[1759849699135,13.95972726,223.0,222.91,10.87647521]
[1759849699437,13.95972726,223.0,222.92,61.72]
[1759849699638,13.95972726,223.0,222.93,61.72]
[1759849699827,13.95972726,223.0,222.94,61.7]
[1759849700241,13.95972726,223.0,222.9,35.0]
[1759849700536,13.95972726,223.0,222.91,61.7]
[1759849700714,13.95972726,223.0,222.92,10.87647521]
[1759849701113,8.58985827,222.99,222.9,35.0]
[1759849701441,0.56058839,222.98,222.9,35.0]
[1759849701620,0.56058839,222.98,222.91,61.7]
[1759849701816,20.8,222.97,222.9,35.0]
[1759849702014,1.22063867,222.96,222.91,61.68]
[1759849702315,13.95972726,223.0,222.91,61.68]
[1759849702520,13.95972726,223.0,222.82,45.89647521]
[1759849702521,7.92985827,222.98,222.92,61.68]
[1759849702714,7.92985827,222.94,222.93,61.68]
[1759849702935,20.8,222.91,222.82,35.02]
[1759849703140,7.92985827,222.89,222.83,61.68]
[1759849703330,0.66,222.94,222.83,61.68]
[1759849703535,7.92985827,222.92,222.82,35.02]
[1759849703723,20.8,222.97,222.84,10.87647521]
[1759849703928,1.22063867,222.96,222.82,35.02]
[1759849704131,7.92985827,222.89,222.82,35.02]
[1759849704319,0.66,222.89,222.83,61.68]
[1759849704647,21.46,222.89,222.55,7.66958312]
[1759849704841,21.46,222.89,222.59,20.8]
[1759849705024,0.66,222.89,222.6,11.0821181]
[1759849705221,0.66,222.94,222.75,10.87647521]
[1759849705444,0.66,222.94,222.77,10.87647521]
[1759849705647,7.92985827,222.87,222.44,22.46509462]
[1759849705817,7.92985827,222.8,222.56,70.16578284]
[1759849706019,7.92985827,222.74,222.56,69.96]
[1759849706235,0.66,222.79,222.6,20.8]
[1759849706549,8.58985827,222.86,222.61,0.20581899]
[1759849706752,7.92985827,222.85,222.69,10.87647521]
[1759849706919,7.92985827,222.83,222.71,10.87647521]
[1759849707115,21.46,222.86,222.71,10.87647521]
[1759849707418,7.92985827,222.83,222.72,61.68]
[1759849707644,21.46,222.86,222.56,69.96]
[1759849707645,1.23099093,222.82,222.56,69.96]
[1759849707841,0.67,222.81,222.56,69.96]
[1759849708147,7.92985827,222.74,222.58,31.67647521]
[1759849708322,0.56104129,222.8,222.6,10.87647521]
[1759849708523,7.92985827,222.76,222.6,10.87647521]
[1759849708729,7.92985827,222.77,222.6,10.87647521]
[1759849709043,0.67,222.88,222.68,10.87647521]
[1759849709232,0.67,222.88,222.72,10.87647521]
[1759849709418,0.67,222.95,222.76,10.87647521]
[1759849709751,7.92985827,222.87,222.77,61.68]
[1759849709957,1.23068897,222.94,222.79,10.87647521]
[1759849710144,1.23068897,222.94,222.76,10.87647521]
[1759849710332,7.92985827,222.86,222.77,61.68]
[1759849710528,0.67,222.93,222.77,61.68]
[1759849710725,20.8,222.91,222.78,34.98]
[1759849710952,7.92985827,222.81,222.78,34.98]
[1759849711128,7.92985827,222.79,222.78,34.98]
[1759849711324,8.59985827,222.79,222.76,34.98]
[1759849711640,0.67,222.78,222.74,34.98]
[1759849711851,0.67,222.83,222.75,61.68]
[1759849712053,0.56099093,222.82,222.76,61.68]
[1759849712241,0.67,222.81,222.76,61.68]
[1759849712442,1.23104129,222.8,222.77,61.68]
[1759849712619,7.92985827,222.78,222.77,61.68]
[1759849712818,0.56101611,222.81,222.77,61.68]
[1759849713035,0.67,222.8,222.74,34.98]
[1759849713245,0.2,223.02,222.77,20.8]
[1759849713451,0.2,223.02,222.83,10.87647521]
[1759849713636,0.2,223.02,222.86,20.8]
[1759849713955,0.2,223.02,222.87,0.20461211]
[1759849714155,0.2,223.02,222.9,20.8]
[1759849714357,0.2,223.02,222.91,20.8]
[1759849714859,0.2,223.02,222.92,61.68]
[1759849715025,0.2,223.02,222.82,0.20461211]
[1759849715225,14.62972726,223.0,222.77,20.8]
[1759849715443,7.92985827,222.99,222.81,20.8]
[1759849715642,14.62972726,223.0,222.81,20.8]
[1759849715948,13.95972726,223.0,222.83,20.8]
[1759849716252,13.95972726,223.0,222.84,0.20470137]
[1759849716455,13.95972726,223.0,222.88,20.8]
[1759849716829,13.95972726,223.0,222.89,61.68]
[1759849717033,13.95972726,223.0,222.8,20.8]
[1759849717249,13.95972726,223.0,222.81,0.20484577]
[1759849717445,13.95972726,223.0,222.85,20.8]
[1759849717752,13.95972726,223.0,222.89,20.8]
[1759849717929,13.95972726,223.0,222.9,61.68]
[1759849718129,13.95972726,223.0,222.85,20.8]
[1759849718348,13.95972726,223.0,222.95,7.6748627]
[1759849718521,13.95972726,223.0,222.96,61.68]
[1759849718522,0.69,222.99,222.96,61.68]
[1759849718722,0.69,222.98,222.96,61.68]
[1759849718949,13.95972726,223.0,222.96,69.3548627]
[1759849719131,0.69,222.99,222.97,61.66]
[1759849719334,13.95972726,223.0,222.97,69.3348627]
[1759849719939,13.95972726,223.0,222.99,7.6748627]
[1759849720122,13.95972726,223.0,222.99,34.98]
[1759849720527,13.95972726,223.0,222.99,115.19133791]
[1759849720751,13.95972726,223.0,222.99,53.53133791]
[1759849720952,13.95972726,223.0,222.99,107.51647521]
[1759849721256,13.95972726,223.0,222.99,115.19133791]
[1759849722230,13.95972726,223.0,222.99,34.98]
[1759849722425,13.95972726,223.0,222.99,42.6548627]
[1759849722639,13.95972726,223.0,222.99,34.98]
[1759849722851,13.95972726,223.0,222.99,104.3148627]
[1759849723060,13.95972726,223.0,222.99,34.98]
[1759849723360,14.64972726,223.0,222.99,96.62]
[1759849723726,4.48450603,222.99,222.93,34.96]
[1759849723932,7.6748627,222.96,222.94,61.64]
[1759849724152,0.69,222.95,222.91,34.96]
[1759849724347,0.69,222.94,222.92,61.64]
[1759849724540,0.69,222.93,222.91,34.96]
[1759849724851,0.69,222.92,222.91,34.96]
[1759849725050,20.8,222.97,222.91,104.2748627]
[1759849725259,0.69,222.98,222.91,104.2748627]
[1759849725260,0.57168124,222.98,222.91,96.6]
[1759849725753,13.95972726,223.0,222.91,34.96]
[1759849725939,21.63458996,223.0,222.91,34.96]
[1759849726141,7.6748627,222.98,222.92,61.64]
[1759849726343,7.6748627,222.96,222.91,34.96]
[1759849726549,28.4748627,222.96,222.91,34.96]
[1759849726752,7.6748627,222.92,222.89,34.96]
[1759849727057,16.25925093,222.95,222.9,61.64]
[1759849727367,13.95972726,223.0,222.94,7.6748627]
[1759849727529,13.95972726,223.0,222.99,7.6748627]
[1759849727734,13.95972726,223.0,222.99,34.96]
[1759849727935,13.95972726,223.0,222.99,67.24]
[1759849728359,13.95972726,223.0,222.99,74.9148627]
[1759849728745,13.95972726,223.0,222.99,82.5897254]
[1759849729053,0.2,223.02,223.01,20.8]
[1759849729266,0.2,223.02,223.01,69.3148627]
[1759849729636,0.2,223.02,223.01,61.64]
[1759849729839,0.89,223.02,222.99,34.96]
[1759849730050,0.69,223.01,223.0,61.64]
[1759849730258,0.69,223.01,222.99,34.96]
[1759849730458,4.68403044,223.02,223.0,61.64]
[1759849730841,0.2,223.02,223.01,7.6748627]
[1759849731271,0.2,223.02,222.99,34.96]
[1759849731436,0.69,223.01,223.0,61.64]
[1759849731640,0.69,223.01,222.93,7.6748627]
[1759849731938,0.69,223.0,222.92,34.96]
[1759849732146,0.69,223.0,222.94,7.6748627]
[1759849732370,0.2,223.02,222.99,15.3497254]
[1759849732574,0.2,223.02,223.01,28.4748627]
[1759849732741,0.69,223.22,223.01,90.1148627]
[1759849732940,4.47997465,223.22,223.01,82.44]
[1759849733164,4.47997465,223.22,222.99,7.6748627]
[1759849733165,0.69,223.21,223.11,7.6748627]
[1759849733474,0.69,223.21,223.12,61.64]
[1759849733673,0.69,223.21,223.0,28.4748627]
[1759849733979,0.69,223.21,223.04,20.8]
[1759849734368,0.2,223.23,223.22,20.8]
[1759849734576,0.2,223.23,223.22,104.2748627]
[1759849734870,0.69,223.47,223.22,238.4897254]
[1759849735072,0.69,223.47,223.36,7.6748627]
[1759849735280,0.69,223.47,223.36,69.3148627]
[1759849735440,0.69,223.47,223.36,61.64]
[1759849735642,0.69,223.47,223.25,7.6748627]
[1759849735842,7.6748627,223.42,223.3,7.6748627]
[1759849736037,0.69,223.38,223.31,96.6]
[1759849736264,20.8,223.33,223.31,34.96]
[1759849736552,1.2497349,223.32,223.25,34.94]
[1759849736753,4.47828034,223.3,223.26,58.46]
[1759849736971,0.72,223.29,223.26,58.46]
[1759849737149,0.72,223.28,223.26,58.46]
[1759849737347,21.52,223.27,223.23,34.94]
[1759849737565,0.72,223.26,223.23,34.94]
[1759849738070,0.72,223.26,223.24,61.62]
[1759849738245,20.8,223.3,223.24,69.2948627]
[1759849738449,20.8,223.3,223.26,7.6748627]
[1759849738651,0.72,223.3,223.26,7.6748627]
[1759849738850,0.72,223.29,223.27,61.6]
[1759849739368,0.72,223.28,223.23,34.94]
[1759849739567,0.72,223.27,223.23,34.94]
[1759849739867,0.72,223.32,223.26,7.6748627]
[1759849740442,0.2,223.37,223.31,7.6748627]
[1759849740655,0.2,223.37,223.36,7.6748627]
[1759849741057,0.2,223.37,223.36,69.2748627]
[1759849741253,0.2,223.37,223.36,61.6]
[1759849742077,0.2,223.37,223.28,20.8]
[1759849742574,0.2,223.37,223.35,7.6748627]
[1759849742785,0.2,223.37,223.35,0.32241257]
[1759849742992,0.2,223.52,223.27,12.08718949]
[1759849742993,0.2,223.52,223.36,69.2548627]
[1759849743194,0.2,223.52,223.4,20.8]
[1759849743498,0.2,223.52,223.5,7.6748627]
[1759849743690,0.2,223.52,223.51,34.92]
[1759849743894,4.47407274,223.51,223.48,34.92]
[1759849744183,20.8,223.48,223.44,34.92]
[1759849744377,20.8,223.48,223.05,14.97548827]
[1759849744378,20.8,223.42,223.29,34.92]
[1759849744578,0.72,223.41,223.29,42.5948627]
[1759849744785,4.47747828,223.34,223.29,34.92]
[1759849744982,20.8,223.38,223.29,34.92]
[1759849745282,7.6748627,223.32,223.29,34.92]
[1759849745484,7.6748627,223.3,223.21,34.92]
[1759849745690,0.72,223.31,223.25,7.6748627]
[1759849745870,21.52,223.31,223.26,61.56]
[1759849746068,0.55960961,223.37,223.26,61.56]
[1759849746283,20.8,223.35,223.26,61.56]
[1759849746480,28.4748627,223.35,223.26,69.2348627]
[1759849746988,20.8,223.31,223.2,34.92]
[1759849747175,7.6748627,223.25,223.2,34.92]
[1759849747379,0.72,223.24,223.21,51.22]
[1759849747699,28.4748627,223.22,223.2,34.92]
[1759849747904,0.72,223.21,223.14,34.92]
[1759849748097,20.8,223.22,223.15,7.6748627]
[1759849748295,20.8,223.23,223.14,34.92]
[1759849748485,0.72,223.37,223.15,0.44812906]
[1759849748666,0.72,223.37,223.14,34.92]
[1759849748869,7.6748627,223.27,223.15,61.56]
[1759849749094,4.47968463,223.23,223.15,61.56]
[1759849749372,15.6788962,223.23,223.15,69.2348627]
[1759849749788,15.6788962,223.23,223.15,61.56]
[1759849749972,15.6788962,223.23,223.15,69.2348627]
[1759849750184,25.27968463,223.23,223.14,34.92]
[1759849750389,8.3948627,223.22,223.15,61.56]
[1759849750621,7.6748627,223.21,223.15,61.56]
[1759849750817,36.4788962,223.23,223.14,34.92]
[1759849751020,12.1559525,223.16,223.14,34.92]
[1759849751192,8.3948627,223.15,223.14,34.92]
[1759849751515,20.8,223.12,223.03,34.92]
[1759849751707,0.72,223.11,223.03,34.92]
[1759849752014,20.8,223.05,223.03,34.92]
[1759849752192,8.3948627,223.04,223.03,34.92]
[1759849752391,8.3948627,223.04,222.96,34.92]
[1759849752603,0.95686045,223.03,222.96,34.92]
[1759849752814,7.6748627,223.0,222.97,55.66]
[1759849753109,20.8,222.97,222.96,34.92]
[1759849753324,21.52,222.97,222.96,34.92]
[1759849753508,29.1948627,222.97,222.96,96.5]
[1759849753695,4.48470714,222.98,222.96,96.5]
[1759849754111,0.72,222.97,222.96,96.5]
[1759849754309,20.8,222.95,222.77,0.1]
[1759849754517,20.8,222.95,222.88,7.6748627]
[1759849754812,28.4748627,222.95,222.78,61.58]
[1759849754987,20.8,222.95,222.9,7.6748627]
[1759849755191,20.8,222.95,222.78,61.58]
[1759849755192,0.72,222.95,222.77,0.1]
[1759849755399,7.6748627,222.96,222.86,7.6748627]
[1759849755617,36.49647501,222.98,222.78,61.6]
[1759849755618,20.8,222.95,222.78,61.6]
[1759849755798,28.4748627,222.95,222.79,61.6]
[1759849756000,7.6748627,222.95,222.79,61.6]
[1759849756316,28.4748627,222.95,222.87,7.6748627]
[1759849756514,28.4748627,222.95,222.88,7.6748627]
[1759849756692,20.8,222.95,222.79,61.6]
[1759849756893,20.8,222.95,222.77,0.1]
[1759849756894,4.47857944,223.29,222.8,27.20415455]
[1759849757094,4.48048747,223.19,222.81,66.64845113]
[1759849757308,7.6748627,223.5,223.03,20.8]
[1759849757309,0.72,223.25,223.03,20.8]
[1759849757513,7.6748627,223.21,223.04,61.6]
[1759849757821,7.6748627,223.14,223.05,96.54]
[1759849758008,0.72,223.13,223.05,61.6]
[1759849758215,0.23686045,223.2,223.05,61.6]
[1759849758216,0.72,223.17,223.05,61.6]
[1759849758404,0.72,223.16,223.05,61.6]
[1759849758795,0.72,223.15,223.05,61.6]
[1759849759204,15.68522004,223.14,223.0,34.94]
[1759849759407,15.68522004,223.14,223.03,7.6748627]
[1759849759608,15.68522004,223.14,223.04,61.6]
[1759849759824,0.72,223.13,223.0,34.94]
[1759849760005,0.72,223.13,223.01,61.6]
[1759849760006,20.8,223.11,223.01,61.6]
[1759849760207,21.03686045,223.11,223.01,61.6]
[1759849760812,21.03686045,223.11,223.0,34.94]
[1759849761118,20.8,223.03,223.01,61.62]
[1759849761319,20.8,223.03,223.0,34.94]
[1759849761320,21.52,223.03,223.0,34.94]
[1759849761624,20.8,223.07,223.01,61.62]
[1759849761823,20.8,223.06,223.01,61.62]
[1759849761998,20.8,223.06,223.02,61.62]
[1759849762198,20.8,223.06,223.0,34.94]
[1759849762406,21.52,223.05,223.01,61.62]
[1759849762605,20.8,223.05,223.01,61.62]
[1759849763112,25.28370174,223.03,223.02,61.62]
[1759849763429,25.28370174,223.03,223.0,34.94]
[1759849763430,26.00370174,223.03,223.0,34.94]
[1759849763725,20.8,223.0,222.92,34.94]
[1759849763931,20.8,222.95,222.93,61.62]
[1759849764237,8.39473391,222.99,222.93,61.62]
[1759849764422,20.8,223.0,222.93,61.62]
[1759849764624,0.72,223.05,222.93,61.62]
[1759849764925,20.8,223.02,222.92,34.94]
[1759849765102,20.8,222.94,222.93,61.62]
[1759849765325,21.52,222.94,222.93,61.62]
[1759849765518,20.8,222.94,222.93,61.62]
[1759849765724,0.72,223.02,222.92,34.94]
[1759849766056,20.8,222.98,222.92,34.94]
[1759849766344,7.67473391,222.99,222.92,34.94]
[1759849766345,20.8,222.99,222.93,61.62]
[1759849766529,20.8,223.01,222.93,61.62]
[1759849766842,20.8,222.94,222.92,34.94]
[1759849767026,0.7,222.94,222.93,61.62]
[1759849767228,25.98551179,222.94,222.93,61.62]
[1759849767636,20.8,222.91,222.81,34.96]
[1759849768248,20.8,222.86,222.77,0.1]
[1759849768429,28.47473391,222.83,222.77,0.1]
[1759849768636,0.7,222.89,222.77,0.1]
[1759849768846,0.23686045,222.88,222.77,0.1]
[1759849769030,0.7,222.87,222.77,0.1]
[1759849769236,20.8,222.82,222.78,61.64]
[1759849769545,20.8,222.78,222.73,34.96]
[1759849769721,0.93686045,222.77,222.74,61.64]
[1759849769927,7.67473391,222.75,222.74,61.64]
[1759849770142,2.32677012,222.64,222.61,35.06]
[1759849770943,2.32677012,222.64,222.62,10.87647521]
[1759849771147,2.32677012,222.64,222.61,35.06]
[1759849771329,2.32677012,222.64,222.62,72.51647521]
[1759849771741,2.32677012,222.64,222.63,11.32565097]
[1759849771936,2.32677012,222.64,222.63,72.98565097]
[1759849772134,2.32677012,222.64,222.61,35.06]
[1759849772435,2.32677012,222.64,222.62,61.66]
[1759849772635,2.32677012,222.64,222.63,10.87647521]
[1759849772835,2.32677012,222.64,222.62,61.66]
[1759849773341,2.32677012,222.64,222.61,35.06]
[1759849773646,2.32677012,222.64,222.63,61.66]
[1759849773861,2.32677012,222.64,222.61,35.06]
[1759849774223,2.32677012,222.64,222.62,61.66]
[1759849775347,2.32677012,222.64,222.62,10.87647521]
[1759849775531,2.32677012,222.64,222.63,61.66]
[1759849775740,2.32677012,222.64,222.63,72.53647521]
[1759849776142,11.22030014,222.82,222.63,61.68]
[1759849776143,0.7,222.72,222.63,61.68]
[1759849776469,20.8,222.68,222.61,35.06]
[1759849776756,7.67473391,222.66,222.62,61.68]
[1759849777050,0.7,222.65,222.62,61.68]
[1759849777238,5.19004384,222.72,222.62,61.68]
[1759849777445,20.8,222.69,222.61,35.06]
[1759849777651,20.8,222.69,222.63,61.68]
[1759849777849,7.67473391,222.64,222.32,4.49802087]
[1759849778059,20.8,222.61,222.41,0.1]
[1759849778350,20.8,222.61,222.42,61.68]
[1759849778536,0.7,222.63,222.42,61.68]
[1759849778736,0.7,222.63,222.43,0.1]
[1759849779141,7.92341569,222.61,222.44,61.7]
[1759849779337,0.7,222.63,222.45,11.42601443]
[1759849779553,20.8,222.61,222.47,10.87647521]
[1759849779742,0.7,222.63,222.47,10.87647521]
[1759849779946,5.19180581,222.63,222.47,10.87647521]
[1759849780151,20.8,222.6,222.45,0.1]
[1759849780338,25.99180581,222.63,222.49,10.87647521]
[1759849780534,4.49151016,222.65,222.5,0.1]
[1759849780743,25.29151016,222.65,222.5,0.1]
[1759849781056,20.8,222.62,222.39,0.1]
[1759849781256,0.92686045,222.64,222.33,69.96]
[1759849781257,4.49377612,222.53,222.33,69.96]
[1759849781470,20.8,222.5,222.4,61.7]
[1759849781851,0.69,222.52,222.4,61.7]
[1759849782041,20.8,222.53,222.41,10.87647521]
[1759849782244,20.8,222.54,222.43,10.87647521]
[1759849782550,20.8,222.54,222.41,10.87647521]
[1759849782735,20.8,222.53,222.41,10.87647521]
[1759849783058,0.92686045,222.52,222.42,61.72]
[1759849783265,28.72341569,222.47,222.42,61.72]
[1759849783462,0.69,222.46,222.26,0.1]
[1759849783759,0.69,222.45,222.26,0.1]
[1759849783972,20.8,222.42,222.26,0.1]
[1759849784166,0.69,222.45,222.3,10.87647521]
[1759849784354,0.69,222.44,222.34,10.87647521]
[1759849784666,20.8,222.41,222.35,61.72]
[1759849784842,8.61341569,222.4,222.23,0.1]
[1759849785049,20.8,222.32,222.16,0.1]
[1759849785353,4.49842555,222.3,222.29,35.0]
[1759849785556,0.69,222.35,222.29,35.0]
[1759849785865,20.8,222.42,222.29,35.0]
[1759849786051,20.8,222.43,222.21,35.02]
[1759849786052,7.92341569,222.3,222.21,35.02]
[1759849786256,0.69,222.39,222.21,35.12]
[1759849786553,0.69,222.41,222.22,62.2900045]
[1759849786862,0.69,222.46,222.23,10.87647521]
[1759849787160,20.8,222.33,222.24,61.74]
[1759849787338,20.8,222.29,222.21,35.02]
[1759849787539,0.69,222.37,222.22,61.74]
[1759849787968,0.69,222.41,222.23,0.1]
[1759849788151,13.60274554,222.5,222.22,61.74]
[1759849788152,7.92341569,222.33,222.25,10.87647521]
[1759849788350,0.69,222.34,222.26,61.76]
[1759849788562,0.69,222.42,222.27,0.1]
[1759849788748,0.23686045,222.41,222.23,10.87647521]
[1759849788951,7.92341569,222.33,222.24,61.76]
[1759849789257,20.8,222.28,222.21,35.02]
[1759849789442,0.69,222.27,222.22,61.76]
[1759849789643,0.69,222.31,222.22,61.76]
[1759849789845,0.69,222.37,222.22,61.76]
[1759849790043,0.69,222.37,222.23,10.87647521]
[1759849790345,0.69,222.43,222.23,10.87647521]
[1759849790563,5.18478604,222.48,222.27,10.87647521]
[1759849790754,0.92686045,222.47,222.29,10.87647521]
[1759849791070,0.69,222.47,222.3,0.1]
[1759849791243,0.23686045,222.57,222.32,15.37449608]
[1759849791244,4.49397806,222.52,222.32,15.37449608]
[1759849791445,0.69,222.58,222.36,10.87647521]
[1759849791661,0.69,222.58,222.37,0.1]
[1759849791959,0.69,222.58,222.39,10.87647521]
[1759849792151,20.8,222.53,222.36,0.1]
[1759849792356,20.8,222.53,222.37,61.78]
[1759849792357,0.23686045,222.52,222.37,61.78]
[1759849792549,0.69,222.51,222.38,61.78]
[1759849792758,0.92686045,222.5,222.39,61.78]
[1759849792954,20.8,222.37,221.93,51.03413502]
[1759849793155,20.8,222.24,222.22,61.78]
[1759849793464,7.92341569,222.25,222.22,61.78]
[1759849793761,0.69,222.32,222.22,61.78]
[1759849793762,7.92341569,222.24,222.22,61.78]
[1759849793970,7.92341569,222.24,222.13,35.12]
[1759849794172,7.92341569,222.24,222.22,61.78]
[1759849794366,20.8,222.31,222.1,0.1]
[1759849794575,0.69,222.23,222.11,61.78]
[1759849794879,0.69,222.22,222.11,61.78]
[1759849795080,0.69,222.29,222.12,10.87647521]
[1759849795258,0.69,222.29,222.14,10.87647521]
[1759849795259,7.92341569,222.25,222.14,10.87647521]
[1759849795461,7.92341569,222.31,222.16,10.87647521]
[1759849795669,0.69,222.4,222.18,10.87647521]
[1759849795860,7.92341569,222.32,222.19,0.1]
[1759849796055,0.23686045,222.44,222.21,10.87647521]
[1759849796272,7.92341569,222.46,222.24,20.8]
[1759849796470,7.92341569,222.48,222.25,80.71641896]
[1759849796670,7.92341569,222.4,222.26,61.9]
[1759849796864,7.92341569,222.38,222.27,10.87647521]
[1759849797067,7.92341569,222.38,222.14,38.2640378]
[1759849797068,7.92341569,222.28,222.05,0.1]
[1759849797282,10.87647521,222.36,222.15,61.8]
[1759849797574,0.89686045,222.37,222.15,61.8]
[1759849797575,7.92341569,222.16,222.15,61.8]
[1759849797776,20.8,222.19,222.15,61.8]
[1759849797950,7.92341569,222.16,222.15,61.8]
[1759849798151,8.58341569,222.16,222.15,61.8]
[1759849798871,0.66,222.16,222.15,61.8]
[1759849799058,20.8,222.23,222.15,61.8]
[1759849799059,7.92341569,222.17,222.15,61.8]
[1759849799385,5.15846786,222.3,222.16,61.8]
[1759849799567,0.89686045,222.36,222.17,10.87647521]
[1759849799769,5.15725631,222.36,222.17,15.37753295]
[1759849799968,7.92341569,222.24,222.16,0.1]
[1759849800274,0.66,222.25,222.18,10.87647521]
[1759849800474,0.66,222.25,222.19,61.82]
[1759849800777,20.8,222.16,222.1,0.1]
[1759849800978,20.8,222.17,222.11,61.82]
[1759849801180,0.89686045,222.24,222.11,61.82]
[1759849801485,0.23686045,222.32,222.12,10.97647521]
[1759849801658,7.92341569,222.26,222.12,11.4266823]
[1759849801860,7.92341569,222.22,222.12,11.3266823]
[1759849802180,0.66,222.4,222.18,10.87647521]
[1759849802359,0.66,222.4,222.19,0.1]
[1759849802554,0.66,222.45,222.19,0.1]
[1759849802956,0.66,222.45,222.21,10.87647521]
[1759849803188,7.92341569,222.3,222.18,10.87647521]
[1759849803386,7.92341569,222.3,222.13,61.82]
[1759849803387,20.8,222.32,222.19,61.82]
[1759849803696,7.92341569,222.3,222.2,10.87647521]
[1759849803870,21.46,222.32,222.21,61.82]
[1759849804182,0.66,222.41,222.21,61.92]
[1759849804480,0.23686045,222.6,222.24,20.8]
[1759849804481,7.92341569,222.43,222.24,20.8]
[1759849804664,7.92341569,222.43,222.25,35.74]
[1759849804866,20.8,222.56,222.26,0.68]
[1759849805064,0.23686045,222.55,222.27,61.82]
[1759849805382,0.23686045,222.55,222.29,15.7451977]
[1759849805585,0.23686045,222.58,222.32,20.8]
[1759849805809,0.23686045,222.71,222.33,0.68]
[1759849805959,7.92341569,222.58,222.34,0.44976162]
[1759849806164,20.8,222.69,222.35,0.68]
[1759849806368,7.92341569,222.53,222.36,0.44972117]
[1759849806576,0.23686045,222.67,222.37,62.5]
[1759849806777,0.66,222.66,222.32,20.8]
[1759849806978,0.66,222.66,222.29,38.23833729]
[1759849806979,0.89686045,222.71,222.41,20.8]
[1759849807188,0.66,222.71,222.42,1.12959985]
[1759849807485,7.92341569,222.58,222.44,4.49559431]
[1759849807667,7.92341569,222.58,222.43,0.68]
[1759849807668,0.66,222.61,222.43,62.5]
[1759849807870,21.03686045,222.6,222.44,61.82]
[1759849808067,21.03686045,222.6,222.33,20.8]
[1759849808068,0.66,222.59,222.38,0.68]
[1759849808260,0.66,222.64,222.39,61.82]
[1759849808462,0.23686045,222.63,222.4,0.68]
[1759849808679,7.92341569,222.54,222.41,61.82]
[1759849808981,20.8,222.58,222.43,10.87647521]
[1759849809165,20.8,222.41,222.08,14.97548827]
[1759849809369,20.8,222.37,222.23,62.5]
[1759849809585,7.92341569,222.34,222.24,61.82]
[1759849809996,20.8,222.37,222.24,61.82]
[1759849810369,0.23686045,222.39,222.25,0.68]
[1759849810576,25.29629187,222.41,222.25,0.68]
[1759849810776,7.92341569,222.39,222.25,0.68]
[1759849810971,25.29583915,222.43,222.25,0.68]
[1759849811176,25.29583915,222.43,222.26,10.87647521]
[1759849811382,25.29583915,222.43,222.28,15.37530551]
[1759849811383,20.8,222.43,222.28,15.37530551]
[1759849811668,0.66,222.45,222.3,10.87647521]
[1759849811881,0.23686045,222.45,222.3,10.87647521]
[1759849812085,0.23686045,222.48,222.32,10.87647521]